Cogmind - Beta 16.1 @@@ ROGUE MODE // 2026.02.25 @ 21:14:56 Player: delto Result: Destroyed by D-53 Grenadier with Mini Grenade Launcher Performance ------------- Evolutions (0) 0 Regions Visited (2) 400 Robots Destroyed (32) 160 Value Destroyed (634) 634 Prototype IDs (1) 20 Alien Tech Used (0) 0 Bonus (97) 97 TOTAL SCORE: 1311 Bonus ------- Follower Combat Kills 97 Cogmind --------- Core Integrity 0/250 Matter 126/300 Energy 85/250 System Corruption 0% Temperature Cool (42) Movement Treading (240) Ox1 Location -10/Mines Parts ------- > --- POWER (1) -------- Ion Engine > --- PROPULSION (2) --- Light Treads > --- UTILITY (2) ------ Large Storage Unit Core Shielding > --- WEAPON (2) ------- (None) > --- INVENTORY (15) --- Improved Heat Sink Large Battery (200) Structural Scanner Subdweller Optics Sensor Array Improved Terrain Scanner Seismic Detector ECM Suite Propulsion Shielding Utility Shielding Tractor Beam Peak State ------------ > --- POWER ------------ Light Nuclear Core > --- PROPULSION ------- Light Treads Light Treads > --- UTILITY ---------- Large Storage Unit Experimental Sensor Array > --- WEAPON ----------- Particle Gun Subdweller Laser > --- INVENTORY -------- Ion Engine Light Treads Improved Heat Sink Large Battery Structural Scanner Subdweller Optics Sensor Array Improved Terrain Scanner Seismic Detector ECM Suite Core Shielding Propulsion Shielding Utility Shielding Light Armor Plating Tractor Beam [Rating: 21] Favorites ----------- Power Light Nuclear Core Engine Ion Engine Power Core Light Nuclear Core Propulsion Light Treads Treads Light Treads Wheel Wheel Utility Large Storage Unit Device Improved Terrain Scanner Storage Large Storage Unit Processor Targeting Computer Protection Propulsion Shielding Weapon Particle Gun Energy Gun Particle Gun Ballistic Gun Assault Rifle Launcher Grenade Launcher Build | -11 -10 -10 ------- Run | Yrd Mat Min Slots Evolved . | . . . Power . | . . . Propulsion . | . . . Utility . | . . . Weapon . | . . . Parts Attached 28 | 7 15 6 Power 3 | 1 1 1 Engine 2 | 1 . 1 Core 1 | . 1 . Reactor . | . . . Propulsion 6 | 2 2 2 Treads 5 | 1 2 2 Leg . | . . . Wheel 1 | 1 . . Hover . | . . . Flight . | . . . Utility 13 | 2 8 3 Device 4 | 1 1 2 Storage 3 | 1 2 . Processor 1 | . 1 . Hackware . | . . . Protection 5 | . 4 1 Artifact . | . . . Weapon 6 | 2 4 . Energy Gun 3 | . 3 . Energy Cannon . | . . . Ballistic Gun 2 | 2 . . Ballistic Cannon . | . . . Launcher 1 | . 1 . Special Weapon . | . . . Impact Weapon . | . . . Slashing Weapon . | . . . Piercing Weapon . | . . . Special Melee Weapon . | . . . Unidentified Prototypes 1 | . . 1 Parts Lost 8 | . 2 6 Power 1 | . . 1 Propulsion 2 | . . 2 Utility 1 | . . 1 Weapon 4 | . 2 2 Highest Loss Streak 6 | . 1 6 To Critical Strikes . | . . . Average Backups 13 | 5 13 14 Power 1 | . 1 . Propulsion 1 | 3 1 1 Utility 9 | . 10 12 Weapon . | . . . Tool/Special . | . . . Unused Backups 26 | 4 15 7 Power 3 | . 3 . Propulsion 7 | 4 3 . Utility 12 | . 5 7 Weapon 4 | . 4 . Tool/Special . | . . . Average Slot Usage (%) 99 | . 99 96 Engine 3 | . 4 . Core 10 | . 9 13 Treads 27 | . 27 27 Device 10 | . 11 10 Storage 13 | . 13 14 Protection 2 | . 2 1 Energy Gun 18 | . 15 27 Ballistic Gun 1 | . 1 . Launcher 8 | . 10 . Peak Build Rating 21 | 9 13 21 Average Rating 11 | 5 11 13 On Entrance 7 | . 9 13 Avg Prop Armor Cover (%) 12 | 12 11 11 Naked Turns . | . . . Heaviest Build 35 | 14 35 35 Greatest Support 40 | 20 40 40 Greatest Overweight (x) 1 | 1 1 1 Average Overweight (x) . | . . . Largest Inventory Capacity 15 | 8 15 15 Average Capacity 13 | 7 14 15 Most Carried 15 | 8 15 15 Average Carried 13 | 5 13 14 Final Capacity 15 | 8 15 15 Final Carried 15 | 8 15 11 Class Distribution -------------------- 71% | Mutant 28% | Scavenger-Mutant Dominant Class ---------------- Mutant | -10/Materials Scavenger-Mutant | -10/Mines Resources | -11 -10 -10 ----------- Run | Yrd Mat Min Matter Collected 864 | 357 431 76 Remotely 403 | . 327 76 Salvage Created 626 | 169 381 76 Parts 61 | 12 39 10 Haulers Intercepted . | . . . Recyclers Shooed . | . . . Parts Field Recycled . | . . . Retrieved Matter . | . . . Parts Self-Destructed . | . . . Prevented . | . . . Parts Restored . | . . . Kills | -11 -10 -10 ------- Run | Yrd Mat Min Combat Hostiles Destroyed 21 | . 15 6 Guns 7 | . 1 6 AOE 14 | . 14 . Classes Destroyed 8 | 3 5 . Worker 3 | 1 2 . Builder 2 | . 2 . Tunneler 4 | 4 . . Recycler 1 | 1 . . Watcher 1 | . 1 . Swarmer 11 | . 5 6 Grunt 8 | . 8 . Subdweller 2 | . 2 . Best Kill Streak 4 | 2 4 3 Combat Bots Only 4 | . 4 3 Max Kills in Single Turn 4 | 1 4 2 Gunslinging 1 | . . 1 Exploded 4 | . 4 . Melee . | . . . Uniques/NPCs Destroyed . | . . . Combat | -11 -10 -10 -------- Run | Yrd Mat Min Hostile Shots Fired 107 | . 59 48 Missed 26 | . 20 6 Hits 81 | . 39 42 Projectile 81 | . 39 42 AOE 11 | . . 11 Damage Taken 1084 | . 499 585 Core 251 | . 83 168 Absorbed by Shields . | . . . Redirected to Shielding 20 | . 17 3 Core Remaining (%) 100 | 100 . . Volleys Fired 66 | 22 32 12 Largest 2 | 2 2 2 Hottest 125 | 40 95 125 Shots Fired 114 | 44 47 23 Gun 90 | 44 23 23 Cannon . | . . . Launcher 24 | . 24 . Special . | . . . Kinetic 46 | 44 2 . Thermal 44 | . 21 23 Explosive 24 | . 24 . Electromagnetic . | . . . Robot Hit Streak 13 | 4 13 5 Robot Miss Streak 3 | 3 2 2 Penetration Max . | . . . Secondary Targets 4 | . . 4 Max Gunslinging Chain 1 | . . 1 Shots Hit Robots 68 | 23 31 14 Core Hits 52 | 9 37 6 Critical Kills . | . . . Critical Parts Destroyed . | . . . Critical Strikes 1 | . 1 . Burn 1 | . 1 . Melee Attacks . | . . . Impact . | . . . Slashing . | . . . Piercing . | . . . Sneak Attacks . | . . . Combat Hostiles . | . . . Follow-up Attacks . | . . . Damage Inflicted 2300 | 251 1804 245 Guns 754 | 251 258 245 Cannons . | . . . Explosions 1546 | . 1546 . Melee . | . . . Ramming . | . . . Kinetic 263 | 251 12 . Thermal 491 | . 246 245 Explosive 1546 | . 1546 . Electromagnetic . | . . . Impact . | . . . Slashing . | . . . Piercing . | . . . Highest Corruption . | . . . Average Corruption . | . . . Corruption Purged . | . . . Corruption Blocked . | . . . Overload Shots . | . . . Overflow Damage 30 | . 30 . Projectiles . | . . . Explosions 30 | . 30 . Melee . | . . . Knockbacks . | . . . Impact . | . . . Kinetic . | . . . Secondary . | . . . Self-Inflicted Damage 25 | . 25 . Shots 1 | . 1 . Rammed . | . . . Targets Rammed . | . . . Kicked . | . . . Crushed . | . . . Highest Temperature 390 | . 231 390 Average Temperature 108 | . 76 158 Received Heat Transfer 171 | . 171 . Effects 4 | . . 4 Shutdowns 1 | . . 1 Energy Bleed 1 | . . 1 Matter Decay 1 | . . 1 Short Circuit 1 | . . 1 Siege Activations . | . . . Martial Activations . | . . . Shielding Activations . | . . . Robots Disrupted . | . . . Combat Hostiles . | . . . Robots Corrupted . | . . . Combat Hostiles . | . . . Parts Fried . | . . . Impact Corruptions . | . . . Robots Melted . | . . . Combat Hostiles . | . . . Parts Melted 2 | . 2 . Heat Transferred 1063 | . 605 458 Parts Sabotaged . | . . . Parts Stolen . | . . . Parts Stripped . | . . . Power Chain Reactions . | . . . Alert | -11 -10 -10 ------- Run | Yrd Mat Min Maximum Alert Level 1 | . 1 . Low Security (%) 95 | 100 93 100 Level 1 4 | . 6 . Level 2 . | . . . Level 3 . | . . . Level 4 . | . . . Level 5 . | . . . High Security . | . . . Max Security . | . . . Peak Influence 212 | 10 212 138 Initial 48 | . . 48 Average 106 | 1 135 61 Influence Increases 856 | 30 686 140 Destroy 0b10 Robot/C 440 | . 320 120 Destroy 0b10 Robot/NC 65 | 30 35 . Destroy Leader 86 | . 66 20 Allied During Kill 31 | . 31 . Successful Hack 18 | . 18 . Disable Machine 105 | . 105 . Destroy Structure 111 | . 111 . Influence Decreases 856 | 30 560 266 Entered New Map 78 | . . 78 Time Decay 738 | 30 520 188 Lost Part 20 | . 20 . Lost Ally 20 | . 20 . Squads Dispatched . | . . . Investigation . | . . . Extermination . | . . . Reinforcement . | . . . Assault . | . . . Garrison . | . . . Intercept . | . . . Searches Triggered . | . . . Construction Impeded . | . . . Haulers Reinforced . | . . . Active Scanning Responses . | . . . Cargo Convoy Interrupts . | . . . Stealth | -11 -10 -10 --------- Run | Yrd Mat Min Distress Signals 1 | . 1 . Communications Jammed . | . . . Distress Signals . | . . . Times Spotted 29 | . 20 9 Peak Tracking Total 5 | . 5 3 Tactical Retreats . | . . . Traps | -11 -10 -10 ------- Run | Yrd Mat Min Traps Triggered 2 | . 2 . Indirectly . | . . . Trap Hack Attempts . | . . . Triggered . | . . . Disarmed . | . . . Reprogrammed . | . . . Reused . | . . . Traps Extracted . | . . . Installed . | . . . Triggered . | . . . Machines | -11 -10 -10 ---------- Run | Yrd Mat Min Machines Disabled 7 | . 7 . Max in Single Turn 2 | . 2 . Machines Repaired . | . . . Machines Dismantled . | . . . Machines Sabotaged . | . . . Overloaded Fab Kills . | . . . Hacking | -11 -10 -10 --------- Run | Yrd Mat Min Machines Accessed 8 | . 8 . Terminals 6 | . 6 . Fabricators . | . . . Repair Stations . | . . . Recycling Units 2 | . 2 . Scanalyzers . | . . . Garrison Access . | . . . Total Hacks 17 | . 17 . Successful 3 | . 3 . Failed 14 | . 14 . Catastrophic 2 | . 2 . Database Lockouts . | . . . Manual 17 | . 17 . Terminals 14 | . 14 . Fabricators . | . . . Repair Stations . | . . . Recycling Units 3 | . 3 . Scanalyzers . | . . . Garrison Access . | . . . Terminal Hacks 2 | . 2 . Branch Access Points 1 | . 1 . Terminal Index 1 | . 1 . Fabricator Hacks . | . . . Repair Station Hacks . | . . . Recycling Unit Hacks . | . . . Scanalyzer . | . . . Garrison Access Hacks . | . . . Unauthorized Hacks 1 | . 1 . Terminals 1 | . 1 . Botnet 1 | . 1 . Fabricators . | . . . Repair Stations . | . . . Recycling Units . | . . . Scanalyzers . | . . . Garrison Access . | . . . Data Cores Recovered . | . . . Used . | . . . Hacking Detections 7 | . 7 . Full Trace Events . | . . . Feedback Events . | . . . Feedback Blocked . | . . . Robot Schematics Acquired . | . . . Robots Built . | . . . Authchips . | . . . Time . | . . . Total Robot Build Rating . | . . . Part Schematics Acquired . | . . . Parts Built . | . . . Authchips . | . . . Time . | . . . Total Part Build Rating . | . . . Part Studies Acquired . | . . . Parts Repaired . | . . . Time . | . . . Parts Recycled . | . . . Recycled Matter . | . . . Retrieved Matter . | . . . Retrieved Components . | . . . Parts Scanalyzed . | . . . Part Schematics Acquired . | . . . Parts Damaged . | . . . Bothacking | -11 -10 -10 ------------ Run | Yrd Mat Min Used RIF Installer . | . . . Robots Hacked . | . . . Non-combat . | . . . Combat . | . . . Robot Hacks Applied . | . . . Relay Couplers Released . | . . . Fabnet Peak Effective % . | . . . Robots Rewired . | . . . Allies Hacked . | . . . Hacks Repelled . | . . . Allies | -11 -10 -10 -------- Run | Yrd Mat Min Total Allies 1 | 1 . . Largest Group 1 | 1 1 . Highest-Rated Group 29 | 29 29 . Highest-Rated Ally 29 | 29 29 . Total Orders . | . . . Ally Attacks 26 | . 26 . Total Damage 257 | . 257 . Kills 6 | . 6 . Allies Corrupted . | . . . Allies Melted . | . . . Intel | -11 -10 -10 ------- Run | Yrd Mat Min Active Infowar (turns) 986 | 18 749 219 Terrain 986 | 18 749 219 Robot Analysis Total . | . . . Derelict Logs Recovered 3 | . . 3 Drone Launches . | . . . Drone Recoveries . | . . . Exploration | -11 -10 -10 ------------- Run | Yrd Mat Min Turns Passed 2155 | 212 1487 456 Spaces Moved 1210 | 135 841 234 Core 4 | 4 . . Treads 1035 | 4 797 234 Legs . | . . . Wheels 171 | 127 44 . Hover . | . . . Flight . | . . . Fastest Speed 50 | 50 95 160 Average Speed 152 | 93 156 172 Slowest Speed 240 | 160 240 240 Overloaded Moves . | . . . Propulsion Burnouts . | . . . Robots Hopped . | . . . Potential Cave-ins . | . . . Cave-ins Triggered . | . . . Exploration Rate (%) 49 | 4 99 45 Regions Visited 2 Branch Regions 1 Pre-discovered Areas 1 | . . 1 Known Exits Taken 1 | . 1 . Unknown Exits Taken 1 | 1 . . Scrap Searched . | . . . Spaces Dug . | . . . Terrain Destroyed 127 | . 127 . Melee . | . . . Projectile . | . . . AOE 127 | . 127 . Terrain Rammed . | . . . Walls Destroyed . | . . . Machines Disabled . | . . . Actions | -11 -10 -10 --------- Run | Yrd Mat Min Total 1405 | 180 964 261 Wait 3 | . 3 . Move 1208 | 134 840 234 Hop . | . . . Pick Up 46 | 12 34 . Fast Attach 11 | 7 3 1 Attach 6 | . 2 4 Detach 1 | . . 1 Swap 32 | . 25 7 Drop 32 | 5 25 2 Fire 66 | 22 32 12 Melee . | . . . Ram . | . . . Kick . | . . . Crush . | . . . Escape Stasis . | . . . Rewire . | . . . Trap . | . . . Miscellaneous . | . . . Route ------- -11/Scrapyard -10/Materials (discovered 5 exits: [*Mat x3] / *Min / [*Sub]) -10/Mines (discovered 1 exit: [*Mat]) History --------- Turn | Location | Event 10 | -11/Scrapyard | Discovered new exit (range 16) 57 | -11/Scrapyard | Botcube activated 67 | -11/Scrapyard | Botcube completed mutation into legged form, armed with 1 gun. 213 | -11/Scrapyard | Entered Materials 213 | -10/Materials | Accompanied by 1 ally 386 | -10/Materials | Build established: Mutant 477 | -10/Materials | Discovered new exit (range 15) 703 | -10/Materials | Discovered new exit (range 15) 913 | -10/Materials | Derelicts attacked the area 944 | -10/Materials | Discovered new exit (range 16) 1522 | -10/Materials | Discovered new exit (range 8) 1542 | -10/Materials | Discovered new exit (range 15) 1599 | -10/Materials | Identified exit to Mines 1700 | -10/Materials | Entered Mines 1742 | -10/Mines | Build established: Scavenger-Mutant 1804 | -10/Mines | Discovered new exit (range 7) 1805 | -10/Mines | Core integrity fell below 50% 1834 | -10/Mines | Learned Materials terminal intel 2061 | -10/Mines | Found a damaged Exp. Sensor Array with a note attached 2065 | -10/Mines | Found Prototype Device 2065 | -10/Mines | Identified Exp. Sensor Array 2090 | -10/Mines | Assembled infested the area 2092 | -10/Mines | Learned 8 Materials zone layouts 2149 | -10/Mines | Core integrity fell below 20% 2156 | -10/Mines | Destroyed by D-53 Grenadier with Mini Grenade Launcher Last Messages --------------- 02090_ ALERT: Infestation in the mines, dispatching Demolisher response squad. 02092_ Acquired derelict log, extracted data. Data stored: Materials zone layouts (x8). 02119_ K-01 Serf collects debris. 02143_ C-45 Heavy ARC bursts open, deploying its payload. 02143_ D-53 Grenadier unfolds itself. 02146_ Destroyed Shock Absorption System. 02146_ Lgt. Nuclear Core destroyed. 02146_ Lgt. Armor Plating destroyed. 02146_ Lgt. Treads destroyed. 02146_ K-01 Serf destroyed. 02148_ Particle Gun destroyed. 02148_ Lgt. Treads destroyed. 02148_ D-53 Grenadier destroyed. 02149_ U-05 Engineer lays Concrete. 02150_ The unstable cave ceiling collapses. 02151_ U-05 Engineer lays Concrete. 02152_ Sub. Laser destroyed. 02152_ U-05 Engineer destroyed. Map ----- +----------------------------------------------------+ | ?????????????????????????????????????????????????? | | ?????????????????????????????????????????????????? | | ?????????????????????????????????????????????????? | | ???????????????????????????????????????????????#?? | | ???????????????????????????????????????????????# ? | | ???????????????????????????????????????????????# ? | | ????????????????????????????????????????#??????? ? | | ???????????????????????????????????????????????? # | | ???????????????????????????????????????????????? | | ????????????????????????????????????????????????# | | ?????????????????????????????????#????????###???# | | ?????????????????????????#?????#?????????## #??# | | ????????????????????????????????????????## #?# | | ????????????????????????????????????????## ## | | ????????????????????????#??????????????#?# # | | ??????????????????????????????????????#??## | | ?????????????????????????????#????????#???# | | ???????????????????????????????????#####??# | | ?????????????????????????????#?##### ##?## | | ????????????????????#???#?#???## ##?## | | ????????????????????# ??####### ##?## | | ???????????#????????# ## ### ##??# | | ????????????????????# # ##### #??# | | ????????????????????# *% ###??### ##?## | | ????????????????????# ###?#???# #??### # | | ?????????????????#??## @ #????#??# ##?#?# # | | ???????????????#?????# ####????## ###?# # | | ????????????????????# d # ##????# ###= | | ????????????????????## #???## ## | | ????????????????????## ##??# #### | | ???????????????????## #?#?# ##? | | ???????????###?????# #### ##???## ## | | ??????????? #????### #??## #?????## # | | ??????????## #??????## #???## #??????# | | ???????????# #???##?## #????## #??????# | | ???????????# #?????## #?????# #??#???# # | | ???????????# #?????# ##????# ##??????# #### | | ???????????# #######r #?????# ##??#???## ###?# | | ???????????# #?????# ####?????###???# | | ???????????######### #????## #????#????##??# | | ?????????????????#?# ##???# #??#??????????# | | ??????????????????## ##??# #######??????## | | ??????????????#??## #??## #?????#?# | | ???????????????### #???## ###### #????#??# | | ??????????????## #????# ##????# #???????# | | ?????????????## #????# ####### #??????## | | ?????????????# #????# ## #????### | | ?????????????# ##????# ## #??### | | ?????????????## ### ##?????##### ## #???# | | ??????????????####??#####???????#??# ## ##### | +----------------------------------------------------+ Best States ------------- Heat Dissipation 39 Energy Generation 14 Energy Capacity 250 Matter Stores 300 Matter Capacity 300 Sight Range 16 Terrain Scan Range 16 Terrain Scan Density 10 Armor Coverage 150 Propulsion Shielding 33 Evasion (%) 44 Targeting Accuracy 5 Recoil Reduction 2 Item Schematics ----------------- None Robot Schematics ------------------ None Fabricated ------------ Nothing Repaired ---------- Nothing Studied --------- None Alien Tech Used ----------------- None Achievements -------------- None Challenges ------------ None Game ------ Seed SpikedTechCapacitor Manual? 0 Play Time 00:20:03 Cumulative 124.8 hours Start 2026.02.25 @ 20:54:58 End 2026.02.25 @ 21:14:56 Sessions 1 Manual Loads 0 Difficulty Rogue Special Mode None Game No. 151 Rogue 151 Adventurer 0 Explorer 0 Win Type - Total 1 Types 1/0/0/0/0/0/0/0/0/0 Lore% 27 Gallery% 46 Achievement% 32 Wizard Run 0 Options --------- Layout 0 ASCII 0 Keyboard 0 Movement Mouse Keybinds 0 Fullscreen 1 Font 24/Smallcaps Map View 76x50 Zoom Use 0% Tactical HUD 1 Map Filters NONE Filters NONE Steam 1 RUN: 32ca2a81-6bae-4e1f-869a-545d3e616889